{"text_format":"1","workbook":"xlsx","n_sheets":3,"sheets":["Cuadro","Códigos ANEXOS IX y X","Códigos"],"not_rendered":{"charts":0,"images":0,"macros":1,"external_links":0,"defined_names":44,"comments":0,"pivot_tables":0},"unopened":[],"bounds":{"document_bytes":16777216,"sheet_cells":100000,"rows_first":2000,"rows_last":500,"rows_between":2000,"halvings":0,"cell_chars":16384,"cell_head_chars":4096},"cells_cut":0,"cells_raw":0,"read":"whole","date_system":"1900"}

{"sheet":"Cuadro","index":0,"n_rows":149,"n_cols":15,"rows_kept":149,"cut":false,"hidden":false,"merged":[[8,4,8,14],[3,3,3,12],[4,3,4,11],[5,3,5,4],[7,4,7,14]]}
[]
[]
[]
[null,null,null,"SOLICITUD DE MODIFICACIÓN PARA EL PROGRAMA DE AYUDAS A LAS INVERSIONES EN EL SECTOR VITIVINÍCOLA."]
[null,null,null,"NOTA IMPORTANTE: Con el fin de facilitar la cumplimentación de este archivo, en la Hoja “Códigos ANEXOS IX y X”, dispone de la relación de Objetivos Estratégicos, Generales, Acciones e Inversiones, de acuerdo con los Anexos IX y X del Real Decreto 905/2022. Deberá remitir el archivo sin modificar el formato, una vez haya cumplimentado los datos requeridos de acuerdo con su solicitud de modificación.\n"]
[null,null,null,"CONVOCATORIA: 2025"]
[]
[null,null,null,"NIF:"]
[null,null,null,"NOMBRE ENTIDAD:"]
[null,null,null,"FECHA LÍMITE DE EJECUCIÓN Y JUSTIFICACIÓN DEL PAGO ","OBJETIVOS ESTRATÉGICOS","OBJETIVOS GENERALES","ACCIONES","INVERSIONES","CÓDIGO -\nDESCRIPCIÓN","DESCRIPCIÓN INVERSIÓN","TIPO DE INVERSIÓN ","TIPO MODIFICACIÓN","IMPORTE\nAPROBADO\n (Euros)",null,"IMPORTE \nSOLICITADO\nMODIFICACIÓN\n(Euros)"]
[{"$f":"MID(E11,1,1)","v":""},{"$f":" \"ObjGen\" & MID(F11,1,1) & MID(F11,3,1)","v":"ObjGen"},{"$f":" \"Acci\" & MID(F11,1,1) & MID(G11,1,1)","v":"Acci"},null,null,null,null,null,{"$f":"IF(H11=\"\",\"\",N11&IF(N11=\"\",,\"\")&(COUNTIF(N$11:$N11,N11))&\".\")","v":""},null,null,null,null,{"$f":"MID(E11,1,FIND(\".\",E11)) & MID(F11,1,FIND(\". \",H11)) & MID(G11,1,FIND(\". \",H11))  & MID(H11,1,FIND(\". \",H11))","v":{"$error":"#VALUE!"}}]
["",{"$f":" \"ObjGen\" & MID(F12,1,1) & MID(F12,3,1)","v":"ObjGen"},"Acci",null,null,null,null,null,{"$f":"IF(H12=\"\",\"\",N12&IF(N12=\"\",,\"\")&(COUNTIF(N$11:$N12,N12))&\".\")","v":""},null,null,null,null,{"$f":"MID(E12,1,FIND(\".\",E12)) & MID(F12,1,FIND(\". \",H12)) & MID(G12,1,FIND(\". \",H12))  & MID(H12,1,FIND(\". \",H12))","v":{"$error":"#VALUE!"}}]
["","ObjGen","Acci",null,null,null,null,null,{"$f":"IF(H13=\"\",\"\",N13&IF(N13=\"\",,\"\")&(COUNTIF(N$11:$N13,N13))&\".\")","v":""},null,null,null,null,{"$error":"#VALUE!"}]
["","ObjGen","Acci",null,null,null,null,null,{"$f":"IF(H14=\"\",\"\",N14&IF(N14=\"\",,\"\")&(COUNTIF(N$11:$N14,N14))&\".\")","v":""},null,null,null,null,{"$error":"#VALUE!"}]
["","ObjGen","Acci",null,null,null,null,null,{"$f":"IF(H15=\"\",\"\",N15&IF(N15=\"\",,\"\")&(COUNTIF(N$11:$N15,N15))&\".\")","v":""},null,null,null,null,{"$error":"#VALUE!"}]
["","ObjGen","Acci",null,null,null,null,null,{"$f":"IF(H16=\"\",\"\",N16&IF(N16=\"\",,\"\")&(COUNTIF(N$11:$N16,N16))&\".\")","v":""},null,null,null,null,{"$error":"#VALUE!"}]
["","ObjGen","Acci",null,null,null,null,null,{"$f":"IF(H17=\"\",\"\",N17&IF(N17=\"\",,\"\")&(COUNTIF(N$11:$N17,N17))&\".\")","v":""},null,null,null,null,{"$error":"#VALUE!"}]
["","ObjGen","Acci",null,null,null,null,null,{"$f":"IF(H18=\"\",\"\",N18&IF(N18=\"\",,\"\")&(COUNTIF(N$11:$N18,N18))&\".\")","v":""},null,null,null,null,{"$error":"#VALUE!"}]
["","ObjGen","Acci",null,null,null,null,null,{"$f":"IF(H19=\"\",\"\",N19&IF(N19=\"\",,\"\")&(COUNTIF(N$11:$N19,N19))&\".\")","v":""},null,null,null,null,{"$error":"#VALUE!"}]
["","ObjGen","Acci",null,null,null,null,null,{"$f":"IF(H20=\"\",\"\",N20&IF(N20=\"\",,\"\")&(COUNTIF(N$11:$N20,N20))&\".\")","v":""},null,null,null,null,{"$error":"#VALUE!"}]
["","ObjGen","Acci",null,null,null,null,null,{"$f":"IF(H21=\"\",\"\",N21&IF(N21=\"\",,\"\")&(COUNTIF(N$11:$N21,N21))&\".\")","v":""},null,null,null,null,{"$error":"#VALUE!"}]
["","ObjGen","Acci",null,null,null,null,null,{"$f":"IF(H22=\"\",\"\",N22&IF(N22=\"\",,\"\")&(COUNTIF(N$11:$N22,N22))&\".\")","v":""},null,null,null,null,{"$error":"#VALUE!"}]
["","ObjGen","Acci",null,null,null,null,null,{"$f":"IF(H23=\"\",\"\",N23&IF(N23=\"\",,\"\")&(COUNTIF(N$11:$N23,N23))&\".\")","v":""},null,null,null,null,{"$error":"#VALUE!"}]
["","ObjGen","Acci",null,null,null,null,null,{"$f":"IF(H24=\"\",\"\",N24&IF(N24=\"\",,\"\")&(COUNTIF(N$11:$N24,N24))&\".\")","v":""},null,null,null,null,{"$error":"#VALUE!"}]
["","ObjGen","Acci",null,null,null,null,null,{"$f":"IF(H25=\"\",\"\",N25&IF(N25=\"\",,\"\")&(COUNTIF(N$11:$N25,N25))&\".\")","v":""},null,null,null,null,{"$error":"#VALUE!"}]
["","ObjGen","Acci",null,null,null,null,null,{"$f":"IF(H26=\"\",\"\",N26&IF(N26=\"\",,\"\")&(COUNTIF(N$11:$N26,N26))&\".\")","v":""},null,null,null,null,{"$error":"#VALUE!"}]
["","ObjGen","Acci",null,null,null,null,null,{"$f":"IF(H27=\"\",\"\",N27&IF(N27=\"\",,\"\")&(COUNTIF(N$11:$N27,N27))&\".\")","v":""},null,null,null,null,{"$error":"#VALUE!"}]
["","ObjGen","Acci",null,null,null,null,null,{"$f":"IF(H28=\"\",\"\",N28&IF(N28=\"\",,\"\")&(COUNTIF(N$11:$N28,N28))&\".\")","v":""},null,null,null,null,{"$error":"#VALUE!"}]
["","ObjGen","Acci",null,null,null,null,null,{"$f":"IF(H29=\"\",\"\",N29&IF(N29=\"\",,\"\")&(COUNTIF(N$11:$N29,N29))&\".\")","v":""},null,null,null,null,{"$error":"#VALUE!"}]
["","ObjGen","Acci",null,null,null,null,null,{"$f":"IF(H30=\"\",\"\",N30&IF(N30=\"\",,\"\")&(COUNTIF(N$11:$N30,N30))&\".\")","v":""},null,null,null,null,{"$error":"#VALUE!"}]
["","ObjGen","Acci",null,null,null,null,null,{"$f":"IF(H31=\"\",\"\",N31&IF(N31=\"\",,\"\")&(COUNTIF(N$11:$N31,N31))&\".\")","v":""},null,null,null,null,{"$error":"#VALUE!"}]
["","ObjGen","Acci",null,null,null,null,null,{"$f":"IF(H32=\"\",\"\",N32&IF(N32=\"\",,\"\")&(COUNTIF(N$11:$N32,N32))&\".\")","v":""},null,null,null,null,{"$error":"#VALUE!"}]
["","ObjGen","Acci",null,null,null,null,null,{"$f":"IF(H33=\"\",\"\",N33&IF(N33=\"\",,\"\")&(COUNTIF(N$11:$N33,N33))&\".\")","v":""},null,null,null,null,{"$error":"#VALUE!"}]
["","ObjGen","Acci",null,null,null,null,null,{"$f":"IF(H34=\"\",\"\",N34&IF(N34=\"\",,\"\")&(COUNTIF(N$11:$N34,N34))&\".\")","v":""},null,null,null,null,{"$error":"#VALUE!"}]
["","ObjGen","Acci",null,null,null,null,null,{"$f":"IF(H35=\"\",\"\",N35&IF(N35=\"\",,\"\")&(COUNTIF(N$11:$N35,N35))&\".\")","v":""},null,null,null,null,{"$error":"#VALUE!"}]
["","ObjGen","Acci",null,null,null,null,null,{"$f":"IF(H36=\"\",\"\",N36&IF(N36=\"\",,\"\")&(COUNTIF(N$11:$N36,N36))&\".\")","v":""},null,null,null,null,{"$error":"#VALUE!"}]
["","ObjGen","Acci",null,null,null,null,null,{"$f":"IF(H37=\"\",\"\",N37&IF(N37=\"\",,\"\")&(COUNTIF(N$11:$N37,N37))&\".\")","v":""},null,null,null,null,{"$error":"#VALUE!"}]
["","ObjGen","Acci",null,null,null,null,null,{"$f":"IF(H38=\"\",\"\",N38&IF(N38=\"\",,\"\")&(COUNTIF(N$11:$N38,N38))&\".\")","v":""},null,null,null,null,{"$error":"#VALUE!"}]
["","ObjGen","Acci",null,null,null,null,null,{"$f":"IF(H39=\"\",\"\",N39&IF(N39=\"\",,\"\")&(COUNTIF(N$11:$N39,N39))&\".\")","v":""},null,null,null,null,{"$error":"#VALUE!"}]
["","ObjGen","Acci",null,null,null,null,null,{"$f":"IF(H40=\"\",\"\",N40&IF(N40=\"\",,\"\")&(COUNTIF(N$11:$N40,N40))&\".\")","v":""},null,null,null,null,{"$error":"#VALUE!"}]
["","ObjGen","Acci",null,null,null,null,null,{"$f":"IF(H41=\"\",\"\",N41&IF(N41=\"\",,\"\")&(COUNTIF(N$11:$N41,N41))&\".\")","v":""},null,null,null,null,{"$error":"#VALUE!"}]
["","ObjGen","Acci",null,null,null,null,null,{"$f":"IF(H42=\"\",\"\",N42&IF(N42=\"\",,\"\")&(COUNTIF(N$11:$N42,N42))&\".\")","v":""},null,null,null,null,{"$error":"#VALUE!"}]
["","ObjGen","Acci",null,null,null,null,null,{"$f":"IF(H43=\"\",\"\",N43&IF(N43=\"\",,\"\")&(COUNTIF(N$11:$N43,N43))&\".\")","v":""},null,null,null,null,{"$error":"#VALUE!"}]
["","ObjGen","Acci",null,null,null,null,null,{"$f":"IF(H44=\"\",\"\",N44&IF(N44=\"\",,\"\")&(COUNTIF(N$11:$N44,N44))&\".\")","v":""},null,null,null,null,{"$error":"#VALUE!"}]
["","ObjGen","Acci",null,null,null,null,null,{"$f":"IF(H45=\"\",\"\",N45&IF(N45=\"\",,\"\")&(COUNTIF(N$11:$N45,N45))&\".\")","v":""},null,null,null,null,{"$error":"#VALUE!"}]
["","ObjGen","Acci",null,null,null,null,null,{"$f":"IF(H46=\"\",\"\",N46&IF(N46=\"\",,\"\")&(COUNTIF(N$11:$N46,N46))&\".\")","v":""},null,null,null,null,{"$error":"#VALUE!"}]
["","ObjGen","Acci",null,null,null,null,null,{"$f":"IF(H47=\"\",\"\",N47&IF(N47=\"\",,\"\")&(COUNTIF(N$11:$N47,N47))&\".\")","v":""},null,null,null,null,{"$error":"#VALUE!"}]
["","ObjGen","Acci",null,null,null,null,null,{"$f":"IF(H48=\"\",\"\",N48&IF(N48=\"\",,\"\")&(COUNTIF(N$11:$N48,N48))&\".\")","v":""},null,null,null,null,{"$error":"#VALUE!"}]
["","ObjGen","Acci",null,null,null,null,null,{"$f":"IF(H49=\"\",\"\",N49&IF(N49=\"\",,\"\")&(COUNTIF(N$11:$N49,N49))&\".\")","v":""},null,null,null,null,{"$error":"#VALUE!"}]
["","ObjGen","Acci",null,null,null,null,null,{"$f":"IF(H50=\"\",\"\",N50&IF(N50=\"\",,\"\")&(COUNTIF(N$11:$N50,N50))&\".\")","v":""},null,null,null,null,{"$error":"#VALUE!"}]
["","ObjGen","Acci",null,null,null,null,null,{"$f":"IF(H51=\"\",\"\",N51&IF(N51=\"\",,\"\")&(COUNTIF(N$11:$N51,N51))&\".\")","v":""},null,null,null,null,{"$error":"#VALUE!"}]
["","ObjGen","Acci",null,null,null,null,null,{"$f":"IF(H52=\"\",\"\",N52&IF(N52=\"\",,\"\")&(COUNTIF(N$11:$N52,N52))&\".\")","v":""},null,null,null,null,{"$error":"#VALUE!"}]
["","ObjGen","Acci",null,null,null,null,null,{"$f":"IF(H53=\"\",\"\",N53&IF(N53=\"\",,\"\")&(COUNTIF(N$11:$N53,N53))&\".\")","v":""},null,null,null,null,{"$error":"#VALUE!"}]
["","ObjGen","Acci",null,null,null,null,null,{"$f":"IF(H54=\"\",\"\",N54&IF(N54=\"\",,\"\")&(COUNTIF(N$11:$N54,N54))&\".\")","v":""},null,null,null,null,{"$error":"#VALUE!"}]
["","ObjGen","Acci",null,null,null,null,null,{"$f":"IF(H55=\"\",\"\",N55&IF(N55=\"\",,\"\")&(COUNTIF(N$11:$N55,N55))&\".\")","v":""},null,null,null,null,{"$error":"#VALUE!"}]
["","ObjGen","Acci",null,null,null,null,null,{"$f":"IF(H56=\"\",\"\",N56&IF(N56=\"\",,\"\")&(COUNTIF(N$11:$N56,N56))&\".\")","v":""},null,null,null,null,{"$error":"#VALUE!"}]
["","ObjGen","Acci",null,null,null,null,null,{"$f":"IF(H57=\"\",\"\",N57&IF(N57=\"\",,\"\")&(COUNTIF(N$11:$N57,N57))&\".\")","v":""},null,null,null,null,{"$error":"#VALUE!"}]
["","ObjGen","Acci",null,null,null,null,null,{"$f":"IF(H58=\"\",\"\",N58&IF(N58=\"\",,\"\")&(COUNTIF(N$11:$N58,N58))&\".\")","v":""},null,null,null,null,{"$error":"#VALUE!"}]
["","ObjGen","Acci",null,null,null,null,null,{"$f":"IF(H59=\"\",\"\",N59&IF(N59=\"\",,\"\")&(COUNTIF(N$11:$N59,N59))&\".\")","v":""},null,null,null,null,{"$error":"#VALUE!"}]
["","ObjGen","Acci",null,null,null,null,null,{"$f":"IF(H60=\"\",\"\",N60&IF(N60=\"\",,\"\")&(COUNTIF(N$11:$N60,N60))&\".\")","v":""},null,null,null,null,{"$error":"#VALUE!"}]
["","ObjGen","Acci",null,null,null,null,null,{"$f":"IF(H61=\"\",\"\",N61&IF(N61=\"\",,\"\")&(COUNTIF(N$11:$N61,N61))&\".\")","v":""},null,null,null,null,{"$error":"#VALUE!"}]
["","ObjGen","Acci",null,null,null,null,null,{"$f":"IF(H62=\"\",\"\",N62&IF(N62=\"\",,\"\")&(COUNTIF(N$11:$N62,N62))&\".\")","v":""},null,null,null,null,{"$error":"#VALUE!"}]
["","ObjGen","Acci",null,null,null,null,null,{"$f":"IF(H63=\"\",\"\",N63&IF(N63=\"\",,\"\")&(COUNTIF(N$11:$N63,N63))&\".\")","v":""},null,null,null,null,{"$error":"#VALUE!"}]
["","ObjGen","Acci",null,null,null,null,null,{"$f":"IF(H64=\"\",\"\",N64&IF(N64=\"\",,\"\")&(COUNTIF(N$11:$N64,N64))&\".\")","v":""},null,null,null,null,{"$error":"#VALUE!"}]
["","ObjGen","Acci",null,null,null,null,null,{"$f":"IF(H65=\"\",\"\",N65&IF(N65=\"\",,\"\")&(COUNTIF(N$11:$N65,N65))&\".\")","v":""},null,null,null,null,{"$error":"#VALUE!"}]
["","ObjGen","Acci",null,null,null,null,null,{"$f":"IF(H66=\"\",\"\",N66&IF(N66=\"\",,\"\")&(COUNTIF(N$11:$N66,N66))&\".\")","v":""},null,null,null,null,{"$error":"#VALUE!"}]
["","ObjGen","Acci",null,null,null,null,null,{"$f":"IF(H67=\"\",\"\",N67&IF(N67=\"\",,\"\")&(COUNTIF(N$11:$N67,N67))&\".\")","v":""},null,null,null,null,{"$error":"#VALUE!"}]
["","ObjGen","Acci",null,null,null,null,null,{"$f":"IF(H68=\"\",\"\",N68&IF(N68=\"\",,\"\")&(COUNTIF(N$11:$N68,N68))&\".\")","v":""},null,null,null,null,{"$error":"#VALUE!"}]
["","ObjGen","Acci",null,null,null,null,null,{"$f":"IF(H69=\"\",\"\",N69&IF(N69=\"\",,\"\")&(COUNTIF(N$11:$N69,N69))&\".\")","v":""},null,null,null,null,{"$error":"#VALUE!"}]
["","ObjGen","Acci",null,null,null,null,null,{"$f":"IF(H70=\"\",\"\",N70&IF(N70=\"\",,\"\")&(COUNTIF(N$11:$N70,N70))&\".\")","v":""},null,null,null,null,{"$error":"#VALUE!"}]
["","ObjGen","Acci",null,null,null,null,null,{"$f":"IF(H71=\"\",\"\",N71&IF(N71=\"\",,\"\")&(COUNTIF(N$11:$N71,N71))&\".\")","v":""},null,null,null,null,{"$error":"#VALUE!"}]
["","ObjGen","Acci",null,null,null,null,null,{"$f":"IF(H72=\"\",\"\",N72&IF(N72=\"\",,\"\")&(COUNTIF(N$11:$N72,N72))&\".\")","v":""},null,null,null,null,{"$error":"#VALUE!"}]
["","ObjGen","Acci",null,null,null,null,null,{"$f":"IF(H73=\"\",\"\",N73&IF(N73=\"\",,\"\")&(COUNTIF(N$11:$N73,N73))&\".\")","v":""},null,null,null,null,{"$error":"#VALUE!"}]
["","ObjGen","Acci",null,null,null,null,null,{"$f":"IF(H74=\"\",\"\",N74&IF(N74=\"\",,\"\")&(COUNTIF(N$11:$N74,N74))&\".\")","v":""},null,null,null,null,{"$error":"#VALUE!"}]
[{"$f":"MID(E75,1,1)","v":""},"ObjGen",{"$f":" \"Acci\" & MID(F75,1,1) & MID(G75,1,1)","v":"Acci"},null,null,null,null,null,{"$f":"IF(H75=\"\",\"\",N75&IF(N75=\"\",,\"\")&(COUNTIF(N$11:$N75,N75))&\".\")","v":""},null,null,null,null,{"$error":"#VALUE!"}]
["",{"$f":" \"ObjGen\" & MID(F76,1,1) & MID(F76,3,1)","v":"ObjGen"},"Acci",null,null,null,null,null,{"$f":"IF(H76=\"\",\"\",N76&IF(N76=\"\",,\"\")&(COUNTIF(N$11:$N76,N76))&\".\")","v":""},null,null,null,null,{"$f":"MID(E76,1,FIND(\".\",E76)) & MID(F76,1,FIND(\". \",H76)) & MID(G76,1,FIND(\". \",H76))  & MID(H76,1,FIND(\". \",H76))","v":{"$error":"#VALUE!"}}]
["","ObjGen","Acci",null,null,null,null,null,{"$f":"IF(H77=\"\",\"\",N77&IF(N77=\"\",,\"\")&(COUNTIF(N$11:$N77,N77))&\".\")","v":""},null,null,null,null,{"$error":"#VALUE!"}]
["","ObjGen","Acci",null,null,null,null,null,{"$f":"IF(H78=\"\",\"\",N78&IF(N78=\"\",,\"\")&(COUNTIF(N$11:$N78,N78))&\".\")","v":""},null,null,null,null,{"$error":"#VALUE!"}]
["","ObjGen","Acci",null,null,null,null,null,{"$f":"IF(H79=\"\",\"\",N79&IF(N79=\"\",,\"\")&(COUNTIF(N$11:$N79,N79))&\".\")","v":""},null,null,null,null,{"$error":"#VALUE!"}]
["","ObjGen","Acci",null,null,null,null,null,{"$f":"IF(H80=\"\",\"\",N80&IF(N80=\"\",,\"\")&(COUNTIF(N$11:$N80,N80))&\".\")","v":""},null,null,null,null,{"$error":"#VALUE!"}]
["","ObjGen","Acci",null,null,null,null,null,{"$f":"IF(H81=\"\",\"\",N81&IF(N81=\"\",,\"\")&(COUNTIF(N$11:$N81,N81))&\".\")","v":""},null,null,null,null,{"$error":"#VALUE!"}]
["","ObjGen","Acci",null,null,null,null,null,{"$f":"IF(H82=\"\",\"\",N82&IF(N82=\"\",,\"\")&(COUNTIF(N$11:$N82,N82))&\".\")","v":""},null,null,null,null,{"$error":"#VALUE!"}]
["","ObjGen","Acci",null,null,null,null,null,{"$f":"IF(H83=\"\",\"\",N83&IF(N83=\"\",,\"\")&(COUNTIF(N$11:$N83,N83))&\".\")","v":""},null,null,null,null,{"$error":"#VALUE!"}]
["","ObjGen","Acci",null,null,null,null,null,{"$f":"IF(H84=\"\",\"\",N84&IF(N84=\"\",,\"\")&(COUNTIF(N$11:$N84,N84))&\".\")","v":""},null,null,null,null,{"$error":"#VALUE!"}]
["","ObjGen","Acci",null,null,null,null,null,{"$f":"IF(H85=\"\",\"\",N85&IF(N85=\"\",,\"\")&(COUNTIF(N$11:$N85,N85))&\".\")","v":""},null,null,null,null,{"$error":"#VALUE!"}]
["","ObjGen","Acci",null,null,null,null,null,{"$f":"IF(H86=\"\",\"\",N86&IF(N86=\"\",,\"\")&(COUNTIF(N$11:$N86,N86))&\".\")","v":""},null,null,null,null,{"$error":"#VALUE!"}]
["","ObjGen","Acci",null,null,null,null,null,{"$f":"IF(H87=\"\",\"\",N87&IF(N87=\"\",,\"\")&(COUNTIF(N$11:$N87,N87))&\".\")","v":""},null,null,null,null,{"$error":"#VALUE!"}]
["","ObjGen","Acci",null,null,null,null,null,{"$f":"IF(H88=\"\",\"\",N88&IF(N88=\"\",,\"\")&(COUNTIF(N$11:$N88,N88))&\".\")","v":""},null,null,null,null,{"$error":"#VALUE!"}]
["","ObjGen","Acci",null,null,null,null,null,{"$f":"IF(H89=\"\",\"\",N89&IF(N89=\"\",,\"\")&(COUNTIF(N$11:$N89,N89))&\".\")","v":""},null,null,null,null,{"$error":"#VALUE!"}]
["","ObjGen","Acci",null,null,null,null,null,{"$f":"IF(H90=\"\",\"\",N90&IF(N90=\"\",,\"\")&(COUNTIF(N$11:$N90,N90))&\".\")","v":""},null,null,null,null,{"$error":"#VALUE!"}]
["","ObjGen","Acci",null,null,null,null,null,{"$f":"IF(H91=\"\",\"\",N91&IF(N91=\"\",,\"\")&(COUNTIF(N$11:$N91,N91))&\".\")","v":""},null,null,null,null,{"$error":"#VALUE!"}]
["","ObjGen","Acci",null,null,null,null,null,{"$f":"IF(H92=\"\",\"\",N92&IF(N92=\"\",,\"\")&(COUNTIF(N$11:$N92,N92))&\".\")","v":""},null,null,null,null,{"$error":"#VALUE!"}]
["","ObjGen","Acci",null,null,null,null,null,{"$f":"IF(H93=\"\",\"\",N93&IF(N93=\"\",,\"\")&(COUNTIF(N$11:$N93,N93))&\".\")","v":""},null,null,null,null,{"$error":"#VALUE!"}]
["","ObjGen","Acci",null,null,null,null,null,{"$f":"IF(H94=\"\",\"\",N94&IF(N94=\"\",,\"\")&(COUNTIF(N$11:$N94,N94))&\".\")","v":""},null,null,null,null,{"$error":"#VALUE!"}]
["","ObjGen","Acci",null,null,null,null,null,{"$f":"IF(H95=\"\",\"\",N95&IF(N95=\"\",,\"\")&(COUNTIF(N$11:$N95,N95))&\".\")","v":""},null,null,null,null,{"$error":"#VALUE!"}]
["","ObjGen","Acci",null,null,null,null,null,{"$f":"IF(H96=\"\",\"\",N96&IF(N96=\"\",,\"\")&(COUNTIF(N$11:$N96,N96))&\".\")","v":""},null,null,null,null,{"$error":"#VALUE!"}]
["","ObjGen","Acci",null,null,null,null,null,{"$f":"IF(H97=\"\",\"\",N97&IF(N97=\"\",,\"\")&(COUNTIF(N$11:$N97,N97))&\".\")","v":""},null,null,null,null,{"$error":"#VALUE!"}]
["","ObjGen","Acci",null,null,null,null,null,{"$f":"IF(H98=\"\",\"\",N98&IF(N98=\"\",,\"\")&(COUNTIF(N$11:$N98,N98))&\".\")","v":""},null,null,null,null,{"$error":"#VALUE!"}]
["","ObjGen","Acci",null,null,null,null,null,{"$f":"IF(H99=\"\",\"\",N99&IF(N99=\"\",,\"\")&(COUNTIF(N$11:$N99,N99))&\".\")","v":""},null,null,null,null,{"$error":"#VALUE!"}]
["","ObjGen","Acci",null,null,null,null,null,{"$f":"IF(H100=\"\",\"\",N100&IF(N100=\"\",,\"\")&(COUNTIF(N$11:$N100,N100))&\".\")","v":""},null,null,null,null,{"$error":"#VALUE!"}]
["","ObjGen","Acci",null,null,null,null,null,{"$f":"IF(H101=\"\",\"\",N101&IF(N101=\"\",,\"\")&(COUNTIF(N$11:$N101,N101))&\".\")","v":""},null,null,null,null,{"$error":"#VALUE!"}]
["","ObjGen","Acci",null,null,null,null,null,{"$f":"IF(H102=\"\",\"\",N102&IF(N102=\"\",,\"\")&(COUNTIF(N$11:$N102,N102))&\".\")","v":""},null,null,null,null,{"$error":"#VALUE!"}]
["","ObjGen","Acci",null,null,null,null,null,{"$f":"IF(H103=\"\",\"\",N103&IF(N103=\"\",,\"\")&(COUNTIF(N$11:$N103,N103))&\".\")","v":""},null,null,null,null,{"$error":"#VALUE!"}]
["","ObjGen","Acci",null,null,null,null,null,{"$f":"IF(H104=\"\",\"\",N104&IF(N104=\"\",,\"\")&(COUNTIF(N$11:$N104,N104))&\".\")","v":""},null,null,null,null,{"$error":"#VALUE!"}]
["","ObjGen","Acci",null,null,null,null,null,{"$f":"IF(H105=\"\",\"\",N105&IF(N105=\"\",,\"\")&(COUNTIF(N$11:$N105,N105))&\".\")","v":""},null,null,null,null,{"$error":"#VALUE!"}]
["","ObjGen","Acci",null,null,null,null,null,{"$f":"IF(H106=\"\",\"\",N106&IF(N106=\"\",,\"\")&(COUNTIF(N$11:$N106,N106))&\".\")","v":""},null,null,null,null,{"$error":"#VALUE!"}]
["","ObjGen","Acci",null,null,null,null,null,{"$f":"IF(H107=\"\",\"\",N107&IF(N107=\"\",,\"\")&(COUNTIF(N$11:$N107,N107))&\".\")","v":""},null,null,null,null,{"$error":"#VALUE!"}]
["","ObjGen","Acci",null,null,null,null,null,{"$f":"IF(H108=\"\",\"\",N108&IF(N108=\"\",,\"\")&(COUNTIF(N$11:$N108,N108))&\".\")","v":""},null,null,null,null,{"$error":"#VALUE!"}]
["","ObjGen","Acci",null,null,null,null,null,{"$f":"IF(H109=\"\",\"\",N109&IF(N109=\"\",,\"\")&(COUNTIF(N$11:$N109,N109))&\".\")","v":""},null,null,null,null,{"$error":"#VALUE!"}]
["","ObjGen","Acci",null,null,null,null,null,{"$f":"IF(H110=\"\",\"\",N110&IF(N110=\"\",,\"\")&(COUNTIF(N$11:$N110,N110))&\".\")","v":""},null,null,null,null,{"$error":"#VALUE!"}]
["","ObjGen","Acci",null,null,null,null,null,{"$f":"IF(H111=\"\",\"\",N111&IF(N111=\"\",,\"\")&(COUNTIF(N$11:$N111,N111))&\".\")","v":""},null,null,null,null,{"$error":"#VALUE!"}]
["","ObjGen","Acci",null,null,null,null,null,{"$f":"IF(H112=\"\",\"\",N112&IF(N112=\"\",,\"\")&(COUNTIF(N$11:$N112,N112))&\".\")","v":""},null,null,null,null,{"$error":"#VALUE!"}]
["","ObjGen","Acci",null,null,null,null,null,{"$f":"IF(H113=\"\",\"\",N113&IF(N113=\"\",,\"\")&(COUNTIF(N$11:$N113,N113))&\".\")","v":""},null,null,null,null,{"$error":"#VALUE!"}]
["","ObjGen","Acci",null,null,null,null,null,{"$f":"IF(H114=\"\",\"\",N114&IF(N114=\"\",,\"\")&(COUNTIF(N$11:$N114,N114))&\".\")","v":""},null,null,null,null,{"$error":"#VALUE!"}]
["","ObjGen","Acci",null,null,null,null,null,{"$f":"IF(H115=\"\",\"\",N115&IF(N115=\"\",,\"\")&(COUNTIF(N$11:$N115,N115))&\".\")","v":""},null,null,null,null,{"$error":"#VALUE!"}]
["","ObjGen","Acci",null,null,null,null,null,{"$f":"IF(H116=\"\",\"\",N116&IF(N116=\"\",,\"\")&(COUNTIF(N$11:$N116,N116))&\".\")","v":""},null,null,null,null,{"$error":"#VALUE!"}]
["","ObjGen","Acci",null,null,null,null,null,{"$f":"IF(H117=\"\",\"\",N117&IF(N117=\"\",,\"\")&(COUNTIF(N$11:$N117,N117))&\".\")","v":""},null,null,null,null,{"$error":"#VALUE!"}]
["","ObjGen","Acci",null,null,null,null,null,{"$f":"IF(H118=\"\",\"\",N118&IF(N118=\"\",,\"\")&(COUNTIF(N$11:$N118,N118))&\".\")","v":""},null,null,null,null,{"$error":"#VALUE!"}]
["","ObjGen","Acci",null,null,null,null,null,{"$f":"IF(H119=\"\",\"\",N119&IF(N119=\"\",,\"\")&(COUNTIF(N$11:$N119,N119))&\".\")","v":""},null,null,null,null,{"$error":"#VALUE!"}]
["","ObjGen","Acci",null,null,null,null,null,{"$f":"IF(H120=\"\",\"\",N120&IF(N120=\"\",,\"\")&(COUNTIF(N$11:$N120,N120))&\".\")","v":""},null,null,null,null,{"$error":"#VALUE!"}]
["","ObjGen","Acci",null,null,null,null,null,{"$f":"IF(H121=\"\",\"\",N121&IF(N121=\"\",,\"\")&(COUNTIF(N$11:$N121,N121))&\".\")","v":""},null,null,null,null,{"$error":"#VALUE!"}]
["","ObjGen","Acci",null,null,null,null,null,{"$f":"IF(H122=\"\",\"\",N122&IF(N122=\"\",,\"\")&(COUNTIF(N$11:$N122,N122))&\".\")","v":""},null,null,null,null,{"$error":"#VALUE!"}]
["","ObjGen","Acci",null,null,null,null,null,{"$f":"IF(H123=\"\",\"\",N123&IF(N123=\"\",,\"\")&(COUNTIF(N$11:$N123,N123))&\".\")","v":""},null,null,null,null,{"$error":"#VALUE!"}]
["","ObjGen","Acci",null,null,null,null,null,{"$f":"IF(H124=\"\",\"\",N124&IF(N124=\"\",,\"\")&(COUNTIF(N$11:$N124,N124))&\".\")","v":""},null,null,null,null,{"$error":"#VALUE!"}]
["","ObjGen","Acci",null,null,null,null,null,{"$f":"IF(H125=\"\",\"\",N125&IF(N125=\"\",,\"\")&(COUNTIF(N$11:$N125,N125))&\".\")","v":""},null,null,null,null,{"$error":"#VALUE!"}]
["","ObjGen","Acci",null,null,null,null,null,{"$f":"IF(H126=\"\",\"\",N126&IF(N126=\"\",,\"\")&(COUNTIF(N$11:$N126,N126))&\".\")","v":""},null,null,null,null,{"$error":"#VALUE!"}]
["","ObjGen","Acci",null,null,null,null,null,{"$f":"IF(H127=\"\",\"\",N127&IF(N127=\"\",,\"\")&(COUNTIF(N$11:$N127,N127))&\".\")","v":""},null,null,null,null,{"$error":"#VALUE!"}]
["","ObjGen","Acci",null,null,null,null,null,{"$f":"IF(H128=\"\",\"\",N128&IF(N128=\"\",,\"\")&(COUNTIF(N$11:$N128,N128))&\".\")","v":""},null,null,null,null,{"$error":"#VALUE!"}]
["","ObjGen","Acci",null,null,null,null,null,{"$f":"IF(H129=\"\",\"\",N129&IF(N129=\"\",,\"\")&(COUNTIF(N$11:$N129,N129))&\".\")","v":""},null,null,null,null,{"$error":"#VALUE!"}]
["","ObjGen","Acci",null,null,null,null,null,{"$f":"IF(H130=\"\",\"\",N130&IF(N130=\"\",,\"\")&(COUNTIF(N$11:$N130,N130))&\".\")","v":""},null,null,null,null,{"$error":"#VALUE!"}]
["","ObjGen","Acci",null,null,null,null,null,{"$f":"IF(H131=\"\",\"\",N131&IF(N131=\"\",,\"\")&(COUNTIF(N$11:$N131,N131))&\".\")","v":""},null,null,null,null,{"$error":"#VALUE!"}]
["","ObjGen","Acci",null,null,null,null,null,{"$f":"IF(H132=\"\",\"\",N132&IF(N132=\"\",,\"\")&(COUNTIF(N$11:$N132,N132))&\".\")","v":""},null,null,null,null,{"$error":"#VALUE!"}]
["","ObjGen","Acci",null,null,null,null,null,{"$f":"IF(H133=\"\",\"\",N133&IF(N133=\"\",,\"\")&(COUNTIF(N$11:$N133,N133))&\".\")","v":""},null,null,null,null,{"$error":"#VALUE!"}]
["","ObjGen","Acci",null,null,null,null,null,{"$f":"IF(H134=\"\",\"\",N134&IF(N134=\"\",,\"\")&(COUNTIF(N$11:$N134,N134))&\".\")","v":""},null,null,null,null,{"$error":"#VALUE!"}]
["","ObjGen","Acci",null,null,null,null,null,{"$f":"IF(H135=\"\",\"\",N135&IF(N135=\"\",,\"\")&(COUNTIF(N$11:$N135,N135))&\".\")","v":""},null,null,null,null,{"$error":"#VALUE!"}]
["","ObjGen","Acci",null,null,null,null,null,{"$f":"IF(H136=\"\",\"\",N136&IF(N136=\"\",,\"\")&(COUNTIF(N$11:$N136,N136))&\".\")","v":""},null,null,null,null,{"$error":"#VALUE!"}]
["","ObjGen","Acci",null,null,null,null,null,{"$f":"IF(H137=\"\",\"\",N137&IF(N137=\"\",,\"\")&(COUNTIF(N$11:$N137,N137))&\".\")","v":""},null,null,null,null,{"$error":"#VALUE!"}]
["","ObjGen","Acci",null,null,null,null,null,{"$f":"IF(H138=\"\",\"\",N138&IF(N138=\"\",,\"\")&(COUNTIF(N$11:$N138,N138))&\".\")","v":""},null,null,null,null,{"$error":"#VALUE!"}]
[{"$f":"MID(E139,1,1)","v":""},"ObjGen",{"$f":" \"Acci\" & MID(F139,1,1) & MID(G139,1,1)","v":"Acci"},null,null,null,null,null,{"$f":"IF(H139=\"\",\"\",N139&IF(N139=\"\",,\"\")&(COUNTIF(N$11:$N139,N139))&\".\")","v":""},null,null,null,null,{"$error":"#VALUE!"}]
["",{"$f":" \"ObjGen\" & MID(F140,1,1) & MID(F140,3,1)","v":"ObjGen"},"Acci",null,null,null,null,null,{"$f":"IF(H140=\"\",\"\",N140&IF(N140=\"\",,\"\")&(COUNTIF(N$11:$N140,N140))&\".\")","v":""},null,null,null,null,{"$f":"MID(E140,1,FIND(\".\",E140)) & MID(F140,1,FIND(\". \",H140)) & MID(G140,1,FIND(\". \",H140))  & MID(H140,1,FIND(\". \",H140))","v":{"$error":"#VALUE!"}}]
["","ObjGen","Acci",null,null,null,null,null,{"$f":"IF(H141=\"\",\"\",N141&IF(N141=\"\",,\"\")&(COUNTIF(N$11:$N141,N141))&\".\")","v":""},null,null,null,null,{"$error":"#VALUE!"}]
["","ObjGen","Acci",null,null,null,null,null,{"$f":"IF(H142=\"\",\"\",N142&IF(N142=\"\",,\"\")&(COUNTIF(N$11:$N142,N142))&\".\")","v":""},null,null,null,null,{"$error":"#VALUE!"}]
["","ObjGen","Acci",null,null,null,null,null,{"$f":"IF(H143=\"\",\"\",N143&IF(N143=\"\",,\"\")&(COUNTIF(N$11:$N143,N143))&\".\")","v":""},null,null,null,null,{"$error":"#VALUE!"}]
["","ObjGen","Acci",null,null,null,null,null,{"$f":"IF(H144=\"\",\"\",N144&IF(N144=\"\",,\"\")&(COUNTIF(N$11:$N144,N144))&\".\")","v":""},null,null,null,null,{"$error":"#VALUE!"}]
["","ObjGen","Acci",null,null,null,null,null,{"$f":"IF(H145=\"\",\"\",N145&IF(N145=\"\",,\"\")&(COUNTIF(N$11:$N145,N145))&\".\")","v":""},null,null,null,null,{"$error":"#VALUE!"}]
["","ObjGen","Acci",null,null,null,null,null,{"$f":"IF(H146=\"\",\"\",N146&IF(N146=\"\",,\"\")&(COUNTIF(N$11:$N146,N146))&\".\")","v":""},null,null,null,null,{"$error":"#VALUE!"}]
["","ObjGen","Acci",null,null,null,null,null,{"$f":"IF(H147=\"\",\"\",N147&IF(N147=\"\",,\"\")&(COUNTIF(N$11:$N147,N147))&\".\")","v":""},null,null,null,null,{"$error":"#VALUE!"}]
["","ObjGen","Acci",null,null,null,null,null,{"$f":"IF(H148=\"\",\"\",N148&IF(N148=\"\",,\"\")&(COUNTIF(N$11:$N148,N148))&\".\")","v":""},null,null,null,null,{"$error":"#VALUE!"}]
["","ObjGen","Acci",null,null,null,null,null,{"$f":"IF(H149=\"\",\"\",N149&IF(N149=\"\",,\"\")&(COUNTIF(N$11:$N149,N149))&\".\")","v":""},null,null,null,null,{"$error":"#VALUE!"}]

{"sheet":"Códigos ANEXOS IX y X","index":1,"n_rows":65,"n_cols":4,"rows_kept":65,"cut":false,"hidden":false,"merged":[[19,1,25,1],[20,2,21,2],[22,2,24,2],[26,1,48,1],[26,2,38,2],[1,0,58,0],[39,2,41,2],[42,2,44,2],[45,2,48,2],[49,1,58,1],[49,2,51,2],[52,2,54,2],[55,2,57,2],[1,1,18,1],[1,2,5,2],[6,2,14,2],[15,2,17,2]]}
["OBJETIVOS ESTRATÉGICOS","OBJETIVOS GENERALES","ACCIONES","INVERSIONES"]
["1. Fomentar la agrupación de los primeros eslabones de la cadena alimentaria mediante la integración de las entidades asociativas y el asociacionismo agrario\n\n2.Fomento de la sostenibilidad social\n\n3. Fomentar los procesos sostenibles desde el punto de vista medioambiental a través del ahorro de energía, la eficiencia energética global, la utilización de energías renovables, aprovechamiento de subproductos, tratamiento y valorización de residuos y efluentes\n\n4. Fomentar la certificación medioambiental de las instalaciones de las empresas vitivinícolas\n\n5. Fomentar la producción ecológica\n\n6. Fomentar los productos acogidos a regímenes de calidad y los pagos de uva por calidad\n\n7. Favorecer el incremento de la dimensión empresarial\n\n8.Favorecer la participación de personas viticultoras y elaboradores en la cadena de valor\n\n9. Fomentar las inversiones en comercialización\n\n10. Fomentar la innovación y la implantación de nuevos productos y nuevas presentaciones\n\n11.Impulsar la adopción de tecnologías digitales en las agroindustrias (Industria Conectada)","1. Inversiones para producción","1. Construcción, adquisición, o mejora de bienes inmuebles","1. Cámaras de almacenamiento frigorífico"]
[null,null,null,"2. Otras instalaciones de bodega"]
[null,null,null,"3. Obra civil: construcción de nuevos inmuebles"]
[null,null,null,"4. Obra civil: mejora de inmuebles"]
[null,null,null,"5. Obra civil: adquisición de inmuebles"]
[null,null,"2. Compra de nueva maquinaria y equipo","1. Maquinaria y/o equipos transformación uva"]
[null,null,null,"2. Maquinaria y/o equipos fermentación y/o vinificación"]
[null,null,null,"3. Maquinaria y/o equipos tratamiento vinos y mostos"]
[null,null,null,"4. Maquinaria y/o equipos control temperatura"]
[null,null,null,"5. Equipos para movimiento y tto del vino en bodega"]
[null,null,null,"6. Equipos para almacenamiento, mezcla, cuidado y envejecimiento"]
[null,null,null,"7. Equipos embotellado, envasado, etiquetado y embalaje"]
[null,null,null,"8. Equipos embotellado, envasado, almacenamiento, embotellado y acondicionamiento espumosos"]
[null,null,null,"9. Equipos gestión de aguas residuales y otros residuos"]
[null,null,"3. Costes generales vinculados a las acciones 1 y 2 (máximo 8%)","1. Honorarios de arquitectos, ingenieros, y/o asesores"]
[null,null,null,"2. Estudios de viabilidad"]
[null,null,null,"3. Beneficio industrial y/o Gastos generales del proyecto"]
[null,null,"4. Adquisición o desarrollo de soportes lógicos ordenador, patentes, licencias, registro de marcas colectivas","1. Software para la gestión de la bodega"]
[null,"2. Inversiones para control de calidad","1. Construcción, adquisición, o mejora de bienes inmuebles","1. Construcción de laboratorios y dotación"]
[null,null,"2. Compra de nueva maquinaria y equipo","1. Maquinaria y equipos para control de calidad de mp, productos y condiciones de producción y conservación"]
[null,null,null,"2. Equipos para introducir normas de calidad o sistemas de trazabilidad"]
[null,null,"3. Costes generales vinculados a las acciones 1 y 2 (máximo 8%)","1. Honorarios de arquitectos, ingenieros, y/o asesores"]
[null,null,null,"2. Estudios de viabilidad"]
[null,null,null,"3. Beneficio industrial y/o Gastos generales del proyecto"]
[null,null,"4. Adquisición o desarrollo de soportes lógicos ordenador, patentes, licencias, registro de marcas colectivas","1. Software para el control de calidad de mp, productos y condiciones de producción y conservación"]
[null,"3. Inversiones relacionadas con comercialización individual nacional\n4. Inversiones relacionadas con comercialización individual internacional\n5. Inversiones relacionadas con comercialización colectiva nacional (sólo para Organizaciones o Asociaciones de productores)\n6. Inversiones relacionadas con comercialización colectiva internacional  (sólo para Organizaciones o Asociaciones de productores)","1. Construcción, adquisición, o mejora de bienes inmuebles","1. Obra civil establecimientos presentación y venta en España: construcción de nuevos inmuebles."]
[null,null,null,"2. Obra civil establecimientos presentación y venta en España: mejora de inmuebles."]
[null,null,null,"3. Obra civil establecimientos presentación y venta en España: adquisición de inmuebles."]
[null,null,null,"4. Obra civil almacenes, centros logísticos y oficinas comerciales en España: construcción de nuevos inmuebles."]
[null,null,null,"5. Obra civil almacenes, centros logísticos y oficinas comerciales en España: mejora de inmuebles."]
[null,null,null,"6. Obra civil almacenes, centros logísticos y oficinas comerciales en España: adquisición de inmuebles."]
[null,null,null,"7. Inversiones en equipos para logística y comercialización de productos vitivinícolas."]
[null,null,null,"8. Obra civil establecimientos presentación y venta en otros países de la UE: construcción de nuevos inmuebles."]
[null,null,null,"9. Obra civil establecimientos presentación y venta en otros países de la UE: mejora de inmuebles."]
[null,null,null,"10. Obra civil establecimientos presentación y venta en otros países de la UE: adquisición de inmuebles"]
[null,null,null,"11. Obra civil almacenes, centros logísticos y oficinas comerciales en otros países de la UE: construcción de nuevos inmuebles."]
[null,null,null,"12. Obra civil almacenes, centros logísticos y oficinas comerciales en otros países de la UE: mejora de inmuebles."]
[null,null,null,"13. Obra civil almacenes, centros logísticos y oficinas comerciales en otros países de la UE: adquisición de inmuebles."]
[null,null,"2. Compra de nueva maquinaria y equipo","1. Maquinaria y equipos para establecimientos de presentación y venta."]
[null,null,null,"2. Maquinaria y equipos para almacenes, centros logísticos y oficinas comerciales."]
[null,null,null,"3. Hardware para comercio electrónico."]
[null,null,"3. Costes generales vinculados a las acciones 1 y 2 (máximo 8%)","1. Honorarios de arquitectos, ingenieros, y/o asesores"]
[null,null,null,"2. Estudios de viabilidad"]
[null,null,null,"3. Beneficio industrial y/o Gastos generales del proyecto"]
[null,null,"4. Adquisición o desarrollo de soportes lógicos ordenador, patentes, licencias, registro de marcas colectivas","1. Software para establecimientos de presentación y venta."]
[null,null,null,"2. Software para almacenes, centros logísticos y oficinas comerciales."]
[null,null,null,"3. Sofware y/o plataforamas web para comercio electrónico."]
[null,null,null,"4. Registro de patentes, licencias y/o marcas colectivas."]
[null,"7. Inversiones relacionadas con usos administrativos y/o generales","1. Construcción, adquisición, o mejora de bienes inmuebles","1. Obra civil: construcción de nuevos inmuebles"]
[null,null,null,"2. Obra civil: mejora de inmuebles"]
[null,null,null,"3. Obra civil: adquisición de inmuebles"]
[null,null,"2. Compra de nueva maquinaria y equipo","1. Suministros energéticos y acometidas de servicios"]
[null,null,null,"2. Otras instalaciones y equipos: de uso administrativo"]
[null,null,null,"3. Otras instalaciones y equipos: de uso empresarial"]
[null,null,"3. Costes generales vinculados a las acciones 1 y 2 (máximo 8%)","1. Honorarios de arquitectos, ingenieros, y/o asesores"]
[null,null,null,"2. Estudios de viabilidad"]
[null,null,null,"3. Beneficio industrial y/o Gastos generales del proyecto"]
[null,null,"4. Adquisición o desarrollo de soportes lógicos ordenador, patentes, licencias, registro de marcas colectivas","1. Sofware para usos administrativos y/o generales"]
[]
[]
["Tipo Modificación"]
["Nueva"]
["Anulación"]
["Modificación presupuestaria"]

{"sheet":"Códigos","index":2,"n_rows":128,"n_cols":4,"rows_kept":128,"cut":false,"hidden":true,"merged":[]}
["Objetivos estratégicos","Objetivos generales","Acciones","Inversiones"]
["1. Fomentar la agrupación de los primeros eslabones de la cadena alimentaria mediante la integración de las entidades asociativas y el asociacionismo agrario","1. Inversiones para producción","1. Construcción, adquisición, o mejora de bienes inmuebles","1. Cámaras de almacenamiento frigorífico"]
["2. Fomento de la sostenibilidad social","2. Inversiones para control de calidad","2. Compra de nueva maquinaria y equipo","2. Otras instalaciones de bodega"]
["3. Fomentar los procesos sostenibles desde el punto de vista medioambiental a través del ahorro de energía, la eficiencia energética global, la utilización de energías renovables, aprovechamiento de subproductos, tratamiento y valorización de residuos y efluentes","3. Inversiones relacionadas con comercialización individual nacional","3. Costes generales vinculados a las acciones 1 y 2 (máximo 8%)","3. Obra civil: construcción de nuevos inmuebles"]
["4. Fomentar la certificación medioambiental de las instalaciones de las empresas vitivinícolas","4. Inversiones relacionadas con comercialización individual internacional","4. Adquisición o desarrollo de soportes lógicos ordenador, patentes, licencias, registro de marcas colectivas","4. Obra civil: mejora de inmuebles"]
["5. Fomentar la producción ecológica","5. Inversiones relacionadas con comercialización colectiva nacional (sólo para Organizaciones o Asociaciones de productores)","1. Construcción, adquisición, o mejora de bienes inmuebles","5. Obra civil: adquisición de inmuebles"]
["6. Fomentar los productos acogidos a regímenes de calidad y los pagos de uva por calidad","6. Inversiones relacionadas con comercialización colectiva internacional  (sólo para Organizaciones o Asociaciones de productores)","2. Compra de nueva maquinaria y equipo","1. Maquinaria y/o equipos transformación uva"]
["7. Favorecer el incremento de la dimensión empresarial","7. Inversiones relacionadas con usos administrativos y/o generales","3. Costes generales vinculados a las acciones 1 y 2 (máximo 8%)","2. Maquinaria y/o equipos fermentación y/o vinificación"]
["8. Favorecer la participación de personas viticultoras y elaboradores en la cadena de valor",null,"4. Adquisición o desarrollo de soportes lógicos ordenador, patentes, licencias, registro de marcas colectivas","3. Maquinaria y/o equipos tratamiento vinos y mostos"]
["9. Fomentar las inversiones en comercialización",null,"1. Construcción, adquisición, o mejora de bienes inmuebles","4. Maquinaria y/o equipos control temperatura"]
["10. Fomentar la innovación y la implantación de nuevos productos y nuevas presentaciones",null,"2. Compra de nueva maquinaria y equipo","5. Equipos para movimiento y tto del vino en bodega"]
["11. Impulsar la introducción de tecnologías digitales en las agroindustrias (Industria Conectada)",null,"3. Costes generales vinculados a las acciones 1 y 2 (máximo 8%)","6. Equipos para almacenamiento, mezcla, cuidado y envejecimiento"]
[null,null,"4. Adquisición o desarrollo de soportes lógicos ordenador, patentes, licencias, registro de marcas colectivas","7. Equipos embotellado, envasado, etiquetado y embalaje"]
[null,null,"1. Construcción, adquisición, o mejora de bienes inmuebles","8. Equipos embotellado, envasado, almacenamiento, embotellado y acondicionamiento espumosos"]
[null,null,"2. Compra de nueva maquinaria y equipo","9. Equipos gestión de aguas residuales y otros residuos"]
[null,null,"3. Costes generales vinculados a las acciones 1 y 2 (máximo 8%)","1. Honorarios de arquitectos, ingenieros, y/o asesores"]
[null,null,"4. Adquisición o desarrollo de soportes lógicos ordenador, patentes, licencias, registro de marcas colectivas","2. Estudios de viabilidad"]
[null,null,"1. Construcción, adquisición, o mejora de bienes inmuebles","3. Beneficio industrial y/o Gastos generales del proyecto"]
[null,null,"2. Compra de nueva maquinaria y equipo","1. Software para la gestión de la bodega"]
[null,null,"3. Costes generales vinculados a las acciones 1 y 2 (máximo 8%)","1. Construcción de laboratorios y dotación"]
[null,null,"4. Adquisición o desarrollo de soportes lógicos ordenador, patentes, licencias, registro de marcas colectivas","1. Maquinaria y equipos para control de calidad de mp, productos y condiciones de producción y conservación"]
[null,null,"1. Construcción, adquisición, o mejora de bienes inmuebles","2. Equipos para introducir normas de calidad o sistemas de trazabilidad"]
[null,null,"2. Compra de nueva maquinaria y equipo","1. Honorarios de arquitectos, ingenieros, y/o asesores"]
[null,null,"3. Costes generales vinculados a las acciones 1 y 2 (máximo 8%)","2. Estudios de viabilidad"]
[null,null,"4. Adquisición o desarrollo de soportes lógicos ordenador, patentes, licencias, registro de marcas colectivas","3. Beneficio industrial y/o Gastos generales del proyecto"]
[null,null,"1. Construcción, adquisición, o mejora de bienes inmuebles","1. Software para el control de calidad de mp, productos y condiciones de producción y conservación"]
[null,null,"2. Compra de nueva maquinaria y equipo","1. Obra civil establecimientos presentación y venta en España: construcción de nuevos inmuebles."]
[null,null,"3. Costes generales vinculados a las acciones 1 y 2 (máximo 8%)","2. Obra civil establecimientos presentación y venta en España: mejora de inmuebles."]
[null,null,"4. Adquisición o desarrollo de soportes lógicos ordenador, patentes, licencias, registro de marcas colectivas","3. Obra civil establecimientos presentación y venta en España: adquisición de inmuebles."]
[null,null,null,"4. Obra civil almacenes, centros logísticos y oficinas comerciales en España: construcción de nuevos inmuebles."]
[null,null,null,"5. Obra civil almacenes, centros logísticos y oficinas comerciales en España: mejora de inmuebles."]
[null,null,null,"6. Obra civil almacenes, centros logísticos y oficinas comerciales en España: adquisición de inmuebles."]
[null,null,null,"7. Inversiones en equipos para logística y comercialización de productos vitivinícolas."]
[null,null,null,"8. Obra civil establecimientos presentación y venta en otros países de la UE: construcción de nuevos inmuebles."]
[null,null,null,"9. Obra civil establecimientos presentación y venta en otros países de la UE: mejora de inmuebles."]
[null,null,null,"10. Obra civil establecimientos presentación y venta en otros países de la UE: adquisición de inmuebles"]
[null,null,null,"11. Obra civil almacenes, centros logísticos y oficinas comerciales en otros países de la UE: construcción de nuevos inmuebles."]
[null,null,null,"12. Obra civil almacenes, centros logísticos y oficinas comerciales en otros países de la UE: mejora de inmuebles."]
[null,null,null,"13. Obra civil almacenes, centros logísticos y oficinas comerciales en otros países de la UE: adquisición de inmuebles."]
[null,null,null,"1. Maquinaria y equipos para establecimientos de presentación y venta."]
[null,null,null,"2. Maquinaria y equipos para almacenes, centros logísticos y oficinas comerciales."]
[null,null,null,"3. Hardware para comercio electrónico."]
[null,null,null,"1. Honorarios de arquitectos, ingenieros, y/o asesores"]
[null,null,null,"2. Estudios de viabilidad"]
[null,null,null,"3. Beneficio industrial y/o Gastos generales del proyecto"]
[null,null,null,"1. Software para establecimientos de presentación y venta."]
[null,null,null,"2. Software para almacenes, centros logísticos y oficinas comerciales."]
[null,null,null,"3. Sofware y/o plataforamas web para comercio electrónico."]
[null,null,null,"4. Registro de patentes, licencias y/o marcas colectivas."]
[null,null,null,"1. Obra civil establecimientos presentación y venta en España: construcción de nuevos inmuebles."]
[null,null,null,"2. Obra civil establecimientos presentación y venta en España: mejora de inmuebles."]
[null,null,null,"3. Obra civil establecimientos presentación y venta en España: adquisición de inmuebles."]
[null,null,null,"4. Obra civil almacenes, centros logísticos y oficinas comerciales en España: construcción de nuevos inmuebles."]
[null,null,null,"5. Obra civil almacenes, centros logísticos y oficinas comerciales en España: mejora de inmuebles."]
[null,null,null,"6. Obra civil almacenes, centros logísticos y oficinas comerciales en España: adquisición de inmuebles."]
[null,null,null,"7. Inversiones en equipos para logística y comercialización de productos vitivinícolas."]
[null,null,null,"8. Obra civil establecimientos presentación y venta en otros países de la UE: construcción de nuevos inmuebles."]
[null,null,null,"9. Obra civil establecimientos presentación y venta en otros países de la UE: mejora de inmuebles."]
[null,null,null,"10. Obra civil establecimientos presentación y venta en otros países de la UE: adquisición de inmuebles"]
[null,null,null,"11. Obra civil almacenes, centros logísticos y oficinas comerciales en otros países de la UE: construcción de nuevos inmuebles."]
[null,null,null,"12. Obra civil almacenes, centros logísticos y oficinas comerciales en otros países de la UE: mejora de inmuebles."]
[null,null,null,"13. Obra civil almacenes, centros logísticos y oficinas comerciales en otros países de la UE: adquisición de inmuebles."]
[null,null,null,"1. Maquinaria y equipos para establecimientos de presentación y venta."]
[null,null,null,"2. Maquinaria y equipos para almacenes, centros logísticos y oficinas comerciales."]
[null,null,null,"3. Hardware para comercio electrónico."]
[null,null,null,"1. Honorarios de arquitectos, ingenieros, y/o asesores"]
[null,null,null,"2. Estudios de viabilidad"]
[null,null,null,"3. Beneficio industrial y/o Gastos generales del proyecto"]
[null,null,null,"1. Software para establecimientos de presentación y venta."]
[null,null,null,"2. Software para almacenes, centros logísticos y oficinas comerciales."]
[null,null,null,"3. Sofware y/o plataforamas web para comercio electrónico."]
[null,null,null,"4. Registro de patentes, licencias y/o marcas colectivas."]
[null,null,null,"1. Obra civil establecimientos presentación y venta en España: construcción de nuevos inmuebles."]
[null,null,null,"2. Obra civil establecimientos presentación y venta en España: mejora de inmuebles."]
[null,null,null,"3. Obra civil establecimientos presentación y venta en España: adquisición de inmuebles."]
[null,null,null,"4. Obra civil almacenes, centros logísticos y oficinas comerciales en España: construcción de nuevos inmuebles."]
[null,null,null,"5. Obra civil almacenes, centros logísticos y oficinas comerciales en España: mejora de inmuebles."]
[null,null,null,"6. Obra civil almacenes, centros logísticos y oficinas comerciales en España: adquisición de inmuebles."]
[null,null,null,"7. Inversiones en equipos para logística y comercialización de productos vitivinícolas."]
[null,null,null,"8. Obra civil establecimientos presentación y venta en otros países de la UE: construcción de nuevos inmuebles."]
[null,null,null,"9. Obra civil establecimientos presentación y venta en otros países de la UE: mejora de inmuebles."]
[null,null,null,"10. Obra civil establecimientos presentación y venta en otros países de la UE: adquisición de inmuebles"]
[null,null,null,"11. Obra civil almacenes, centros logísticos y oficinas comerciales en otros países de la UE: construcción de nuevos inmuebles."]
[null,null,null,"12. Obra civil almacenes, centros logísticos y oficinas comerciales en otros países de la UE: mejora de inmuebles."]
[null,null,null,"13. Obra civil almacenes, centros logísticos y oficinas comerciales en otros países de la UE: adquisición de inmuebles."]
[null,null,null,"1. Maquinaria y equipos para establecimientos de presentación y venta."]
[null,null,null,"2. Maquinaria y equipos para almacenes, centros logísticos y oficinas comerciales."]
[null,null,null,"3. Hardware para comercio electrónico."]
[null,null,null,"1. Honorarios de arquitectos, ingenieros, y/o asesores"]
[null,null,null,"2. Estudios de viabilidad"]
[null,null,null,"3. Beneficio industrial y/o Gastos generales del proyecto"]
[null,null,null,"1. Software para establecimientos de presentación y venta."]
[null,null,null,"2. Software para almacenes, centros logísticos y oficinas comerciales."]
[null,null,null,"3. Sofware y/o plataforamas web para comercio electrónico."]
[null,null,null,"4. Registro de patentes, licencias y/o marcas colectivas."]
[null,null,null,"1. Obra civil establecimientos presentación y venta en España: construcción de nuevos inmuebles."]
[null,null,null,"2. Obra civil establecimientos presentación y venta en España: mejora de inmuebles."]
[null,null,null,"3. Obra civil establecimientos presentación y venta en España: adquisición de inmuebles."]
[null,null,null,"4. Obra civil almacenes, centros logísticos y oficinas comerciales en España: construcción de nuevos inmuebles."]
[null,null,null,"5. Obra civil almacenes, centros logísticos y oficinas comerciales en España: mejora de inmuebles."]
[null,null,null,"6. Obra civil almacenes, centros logísticos y oficinas comerciales en España: adquisición de inmuebles."]
[null,null,null,"7. Inversiones en equipos para logística y comercialización de productos vitivinícolas."]
[null,null,null,"8. Obra civil establecimientos presentación y venta en otros países de la UE: construcción de nuevos inmuebles."]
[null,null,null,"9. Obra civil establecimientos presentación y venta en otros países de la UE: mejora de inmuebles."]
[null,null,null,"10. Obra civil establecimientos presentación y venta en otros países de la UE: adquisición de inmuebles"]
[null,null,null,"11. Obra civil almacenes, centros logísticos y oficinas comerciales en otros países de la UE: construcción de nuevos inmuebles."]
[null,null,null,"12. Obra civil almacenes, centros logísticos y oficinas comerciales en otros países de la UE: mejora de inmuebles."]
[null,null,null,"13. Obra civil almacenes, centros logísticos y oficinas comerciales en otros países de la UE: adquisición de inmuebles."]
[null,null,null,"1. Maquinaria y equipos para establecimientos de presentación y venta."]
[null,null,null,"2. Maquinaria y equipos para almacenes, centros logísticos y oficinas comerciales."]
[null,null,null,"3. Hardware para comercio electrónico."]
[null,null,null,"1. Honorarios de arquitectos, ingenieros, y/o asesores"]
[null,null,null,"2. Estudios de viabilidad"]
[null,null,null,"3. Beneficio industrial y/o Gastos generales del proyecto"]
[null,null,null,"1. Software para establecimientos de presentación y venta."]
[null,null,null,"2. Software para almacenes, centros logísticos y oficinas comerciales."]
[null,null,null,"3. Sofware y/o plataforamas web para comercio electrónico."]
[null,null,null,"4. Registro de patentes, licencias y/o marcas colectivas."]
[null,null,null,"1. Obra civil: construcción de nuevos inmuebles"]
[null,null,null,"2. Obra civil: mejora de inmuebles"]
[null,null,null,"3. Obra civil: adquisición de inmuebles"]
[null,null,null,"1. Suministros energéticos y acometidas de servicios"]
[null,null,null,"2. Otras instalaciones y equipos: de uso administrativo"]
[null,null,null,"3. Otras instalaciones y equipos: de uso empresarial"]
[null,null,null,"1. Honorarios de arquitectos, ingenieros, y/o asesores"]
[null,null,null,"2. Estudios de viabilidad"]
[null,null,null,"3. Beneficio industrial y/o Gastos generales del proyecto"]
[null,null,null,"1. Sofware para usos administrativos y/o generales"]